Cogmind - Beta 15 @@@ ROGUE MODE // 2025.06.28 @ 04:08:09 Player: Mogwok Wargfriend Result: Destroyed by P-60 Hacker with Shock Rifle Performance ------------- Evolutions (3) 1500 Regions Visited (5) 1000 Robots Destroyed (191) 955 Value Destroyed (4401) 4401 Prototype IDs (10) 200 Alien Tech Used (0) 0 Bonus (146) 146 TOTAL SCORE: 8202 Bonus ------- High Alert Combat Kills 146 Cogmind --------- Core Integrity 0/700 Matter 262/300 Energy 98/100 System Corruption 12% Temperature Cool (0) Movement Core (50) Location -7/Factory Parts ------- > --- POWER (1) -------- (None) > --- PROPULSION (3) --- (None) > --- UTILITY (7) ------ Improved Targeting Computer Advanced Targeting Computer > --- WEAPON (2) ------- (None) > --- INVENTORY (5) ---- Improved Heat Sink Large Matter Pod (150) Beam Rifle Faulty Cooled Particle Cannon Mining Laser Peak State ------------ > --- POWER ------------ Reinforced Ion Engine > --- PROPULSION ------- Light Treads Light Treads Armored Treads > --- UTILITY ---------- Improved Heat Sink Large Storage Unit Improved Targeting Computer Improved Targeting Computer Advanced Targeting Computer Hardened Medium Armor Plating Improved Light Armor Plating > --- WEAPON ----------- Improved Medium Laser Heavy Laser > --- INVENTORY -------- Heavy Ion Engine Nuclear Core Nuclear Core Improved Heat Sink Large Matter Pod Medium Armor Plating Heavy EM Shotgun Beam Rifle Field Laser Advanced Beam Rifle Cooled Particle Cannon Cooled Particle Cannon Rocket Launcher Mining Laser [Rating: 35] Favorites ----------- Power Reinforced Ion Engine Engine Reinforced Ion Engine Power Core Light Nuclear Core Propulsion Light Treads Treads Light Treads Wheel Compact Wheel Utility Large Storage Unit Device Heat Sink Storage Large Storage Unit Processor Improved Targeting Computer Protection Medium Armor Plating Weapon Beam Rifle Energy Gun Beam Rifle Energy Cannon Light EM Pulse Cannon Ballistic Gun Assault Rifle Launcher Rocket Launcher Special Weapon Mining Laser Build | -11 -10 -9 -9 -8 -7 ------- Run | Yrd Mat Mat Sto Mat Fac Slots Evolved 6 | . . 2 . 2 2 Power . | . . . . . . Propulsion 1 | . . 1 . . . Utility 5 | . . 1 . 2 2 Weapon . | . . . . . . Parts Attached 105 | 8 15 29 21 19 13 Power 12 | 1 3 4 2 . 2 Engine 10 | 1 2 4 2 . 1 Core 2 | . 1 . . . 1 Reactor . | . . . . . . Propulsion 34 | 3 5 9 10 6 1 Treads 26 | . . 9 10 6 1 Leg . | . . . . . . Wheel 8 | 3 5 . . . . Hover . | . . . . . . Flight . | . . . . . . Utility 30 | 2 5 7 5 8 3 Device 11 | 1 3 2 2 3 . Storage 5 | 1 2 1 1 . . Processor 3 | . . . . 2 1 Hackware . | . . . . . . Protection 11 | . . 4 2 3 2 Artifact . | . . . . . . Weapon 29 | 2 2 9 4 5 7 Energy Gun 24 | 1 2 8 3 5 5 Energy Cannon 2 | . . 1 . . 1 Ballistic Gun 1 | 1 . . . . . Ballistic Cannon . | . . . . . . Launcher 1 | . . . . . 1 Special Weapon 1 | . . . 1 . . Impact Weapon . | . . . . . . Slashing Weapon . | . . . . . . Piercing Weapon . | . . . . . . Special Melee Weapon . | . . . . . . Unidentified Prototypes 7 | . . 2 . 2 3 Parts Lost 32 | . 4 3 2 5 18 Power 4 | . 1 1 . . 2 Propulsion 12 | . 2 2 1 2 5 Utility 8 | . . . 1 1 6 Weapon 8 | . 1 . . 2 5 Highest Loss Streak 15 | . 1 2 2 2 15 To Critical Strikes 1 | . . 1 . . . Average Backups 13 | 5 11 14 14 14 13 Power 1 | . . 1 1 1 2 Propulsion 2 | 3 2 2 2 2 . Utility 4 | . 1 5 5 3 3 Weapon 5 | 1 6 5 4 5 7 Tool/Special . | . . . . . . Unused Backups 31 | . 6 12 . 8 5 Power 6 | . 1 1 . 3 1 Propulsion 6 | . 5 1 . . . Utility 8 | . . 2 . 4 2 Weapon 11 | . . 8 . 1 2 Tool/Special . | . . . . . . Average Slot Usage (%) 97 | . 99 99 99 98 86 Engine 9 | . 6 11 11 8 6 Core 1 | . 7 . . . . Treads 25 | . . 31 32 26 21 Wheel 4 | . 27 1 . . . Device 10 | . 14 11 11 9 6 Storage 10 | . 14 11 11 9 6 Processor 5 | . . . . 16 20 Protection 8 | . . 10 10 8 7 Energy Gun 19 | . 18 21 21 18 13 Ballistic Gun 1 | . 9 . . . . Peak Build Rating 35 | 7 10 16 16 28 35 Average Rating 17 | 5 8 13 15 24 29 On Entrance 12 | . 7 8 16 16 27 Naked Turns . | . . . . . . Heaviest Build 49 | 12 29 42 44 46 49 Greatest Support 60 | 26 32 60 60 60 60 Greatest Overweight (x) 2 | 1 2 1 1 2 1 Average Overweight (x) . | . . . . . . Largest Inventory Capacity 15 | 8 15 15 15 15 15 Average Capacity 14 | 7 12 15 15 15 14 Most Carried 15 | 8 15 15 15 15 15 Average Carried 14 | 5 11 14 14 14 13 Final Capacity 15 | 8 15 15 15 15 5 Final Carried 15 | 8 15 15 12 13 5 Class Distribution -------------------- 80% | Scavenger-Mutant 19% | Mutant Dominant Class ---------------- Mutant | -10/Materials Scavenger-Mutant | -9/Materials Scavenger-Mutant | -9/Storage Scavenger-Mutant | -8/Materials Scavenger-Mutant | -7/Factory Resources | -11 -10 -9 -9 -8 -7 ----------- Run | Yrd Mat Mat Sto Mat Fac Matter Collected 1795 | 304 420 310 250 310 201 Remotely . | . . . . . . Salvage Created 6788 | 216 670 1824 1677 1748 653 Parts 380 | 17 43 103 94 81 42 Haulers Intercepted 19 | . 2 5 6 5 1 Recyclers Shooed 5 | . . 1 4 . . Parts Field Recycled . | . . . . . . Retrieved Matter . | . . . . . . Parts Self-Destructed . | . . . . . . Prevented . | . . . . . . Kills | -11 -10 -9 -9 -8 -7 ------- Run | Yrd Mat Mat Sto Mat Fac Combat Hostiles Destroyed 116 | . 14 27 27 32 16 Guns 102 | . 14 25 26 31 6 AOE 10 | . . . . . 10 Classes Destroyed 16 | 2 6 3 . 1 4 Worker 17 | . 2 4 5 2 4 Builder 5 | . . 1 . 1 3 Tunneler 7 | 5 2 . . . . Hauler 19 | . 2 5 6 5 1 Recycler 9 | 1 1 4 3 . . Mechanic 1 | . . . . . 1 Operator 4 | . 1 . 1 1 1 Watcher 13 | . 3 5 2 3 . Swarmer 39 | . 8 10 8 10 3 Grunt 39 | . 6 6 6 13 8 Brawler 3 | . . 2 . 1 . Duelist 2 | . . . . 2 . Protector 1 | . . . . . 1 Sentry 29 | . . 9 13 6 1 Hunter 1 | . . . . . 1 Programmer 2 | . . . . . 2 Best Kill Streak 14 | 6 5 9 14 6 11 Combat Bots Only 8 | . 3 8 6 6 7 Max Kills in Single Turn 3 | 1 2 2 2 2 3 Gunslinging 1 | . 1 1 . 1 . Exploded 3 | . . . . . 3 Melee . | . . . . . . Uniques/NPCs Destroyed . | . . . . . . Combat | -11 -10 -9 -9 -8 -7 -------- Run | Yrd Mat Mat Sto Mat Fac Hostile Shots Fired 812 | . 68 121 153 202 268 Missed 231 | . 19 30 35 55 92 Hits 581 | . 49 91 118 147 176 Melee 25 | . . 4 11 10 . Projectile 556 | . 49 87 107 137 176 Critical Strikes 31 | . 2 5 10 5 9 Damage Taken 8156 | . 531 1188 1616 2099 2722 Core 1385 | . 85 117 260 221 702 Absorbed by Shields . | . . . . . . Regen/Repaired (Parts) 705 | . . 76 346 283 . Core Remaining (%) 57 | 100 66 . 5 59 . Volleys Fired 500 | 8 82 120 116 137 37 Largest 2 | 2 2 2 2 2 2 Hottest 156 | 60 80 112 156 125 136 Shots Fired 983 | 16 163 239 228 269 68 Gun 971 | 16 163 239 226 269 58 Cannon . | . . . . . . Launcher 10 | . . . . . 10 Special 2 | . . . 2 . . Kinetic 49 | 8 41 . . . . Thermal 924 | 8 122 239 228 269 58 Explosive 10 | . . . . . 10 Electromagnetic . | . . . . . . Robot Hit Streak 25 | 6 10 11 17 20 25 Robot Miss Streak 5 | 1 4 4 5 4 4 Penetration Max . | . . . . . . Secondary Targets 18 | . 1 4 4 7 2 Max Gunslinging Chain 1 | . 1 1 1 1 1 Shots Hit Robots 651 | 11 96 154 149 192 49 Core Hits 306 | 7 36 62 60 72 69 Critical Kills . | . . . . . . Critical Parts Destroyed . | . . . . . . Critical Strikes 35 | . . 11 12 10 2 Burn 35 | . . 11 12 10 2 Melee Attacks . | . . . . . . Impact . | . . . . . . Slashing . | . . . . . . Piercing . | . . . . . . Sneak Attacks . | . . . . . . Combat Hostiles . | . . . . . . Follow-up Attacks . | . . . . . . Damage Inflicted 12230 | 135 1102 2247 2318 3263 3165 Guns 9835 | 135 1098 2247 2318 3182 855 Cannons . | . . . . . . Explosions 2391 | . . . . 81 2310 Melee . | . . . . . . Ramming 4 | . 4 . . . . Kinetic 392 | 49 343 . . . . Thermal 9862 | 86 755 2247 2318 3263 1193 Explosive 1972 | . . . . . 1972 Electromagnetic . | . . . . . . Impact . | . . . . . . Slashing . | . . . . . . Piercing . | . . . . . . Highest Corruption 12 | . . . . . 12 Average Corruption 2 | . . . . . 2 Corruption Purged . | . . . . . . Corruption Blocked . | . . . . . . Effects 2 | . . . . . 2 Matter Fused 2 | . . . . . 2 Overload Shots . | . . . . . . Overflow Damage 169 | . . . . . 169 Projectiles . | . . . . . . Explosions 169 | . . . . . 169 Melee . | . . . . . . Knockbacks . | . . . . . . Impact . | . . . . . . Kinetic . | . . . . . . Secondary . | . . . . . . Self-Inflicted Damage 2 | . 2 . . . . Shots . | . . . . . . Rammed 1 | . 1 . . . . Targets Rammed 1 | . 1 . . . . Kicked . | . . . . . . Crushed . | . . . . . . Highest Temperature 414 | . 110 270 228 414 273 Average Temperature 72 | . 65 56 71 85 87 Received Heat Transfer 2313 | . 234 381 495 837 366 Effects 2 | . . . . 2 . Shutdowns 1 | . . . . 1 . Damage (minor) 1 | . . . . 1 . Siege Activations . | . . . . . . Martial Activations . | . . . . . . Shielding Activations . | . . . . . . Robots Disrupted . | . . . . . . Combat Hostiles . | . . . . . . Robots Corrupted . | . . . . . . Combat Hostiles . | . . . . . . Parts Fried . | . . . . . . Impact Corruptions . | . . . . . . Robots Melted 4 | . . 2 1 1 . Combat Hostiles 4 | . . 2 1 1 . Parts Melted 57 | . 1 18 18 18 2 Heat Transferred 23967 | 200 1650 6299 6160 7832 1826 Parts Sabotaged . | . . . . . . Parts Stolen . | . . . . . . Parts Stripped . | . . . . . . Power Chain Reactions . | . . . . . . Alert | -11 -10 -9 -9 -8 -7 ------- Run | Yrd Mat Mat Sto Mat Fac Maximum Alert Level 2 | . . 1 2 2 1 Low Security (%) 46 | 100 100 54 7 31 70 Level 1 39 | . . 45 76 28 29 Level 2 13 | . . . 15 40 . Level 3 . | . . . . . . Level 4 . | . . . . . . Level 5 . | . . . . . . High Security . | . . . . . . Max Security . | . . . . . . Peak Influence 565 | 25 135 306 437 565 327 Initial 256 | . . 37 124 159 256 Average 220 | 6 34 166 336 314 174 Influence Increases 3992 | 30 487 957 899 1102 517 Destroy 0b10 Robot/C 2300 | . 280 540 540 640 300 Destroy 0b10 Robot/NC 375 | 30 55 95 85 60 50 Destroy Leader 614 | . 70 170 176 156 42 Successful Hack 213 | . 21 74 51 43 24 Disable Machine 150 | . 15 30 30 60 15 Destroy Structure 115 | . 1 3 2 53 56 Lose Combat Pursuer 225 | . 45 45 15 90 30 Influence Decreases 3767 | 30 397 751 818 914 857 Entered New Map 752 | . . 53 172 218 309 Time Decay 2583 | 30 255 658 626 646 368 Lost Part 306 | . 26 30 20 50 180 Lost Ally 10 | . . 10 . . . Purge Threat 116 | . 116 . . . . Squads Dispatched 16 | . 3 . 5 5 3 Investigation 2 | . 1 . . 1 . Extermination 1 | . . . . . 1 Reinforcement 7 | . 2 . 1 2 2 Assault 2 | . . . 1 1 . Garrison 4 | . . . 3 1 . Intercept . | . . . . . . Searches Triggered . | . . . . . . Construction Impeded 1 | . . . . . 1 Haulers Reinforced 1 | . . . . . 1 Active Scanning Responses . | . . . . . . Cargo Convoy Interrupts 1 | . . . . . 1 Stealth | -11 -10 -9 -9 -8 -7 --------- Run | Yrd Mat Mat Sto Mat Fac Distress Signals 12 | . 1 2 2 5 2 Communications Jammed . | . . . . . . Distress Signals . | . . . . . . Times Spotted 192 | . 25 43 40 53 31 Peak Tracking Total 11 | . 5 7 5 6 11 Tactical Retreats 11 | . 2 3 1 4 1 Traps | -11 -10 -9 -9 -8 -7 ------- Run | Yrd Mat Mat Sto Mat Fac Traps Triggered 6 | . . . 1 5 . Indirectly . | . . . . . . Trap Hack Attempts . | . . . . . . Triggered . | . . . . . . Disarmed . | . . . . . . Reprogrammed . | . . . . . . Reused . | . . . . . . Traps Extracted . | . . . . . . Installed . | . . . . . . Triggered . | . . . . . . Machines | -11 -10 -9 -9 -8 -7 ---------- Run | Yrd Mat Mat Sto Mat Fac Machines Disabled 10 | . 1 2 2 4 1 Max in Single Turn 3 | . 1 1 1 3 1 Garrison Access 1 | . . . 1 . . Machines Repaired . | . . . . . . Machines Dismantled . | . . . . . . Machines Sabotaged . | . . . . . . Overloaded Fab Kills . | . . . . . . Hacking | -11 -10 -9 -9 -8 -7 --------- Run | Yrd Mat Mat Sto Mat Fac Machines Accessed 52 | . 9 13 14 12 4 Terminals 35 | . 7 9 10 7 2 Fabricators . | . . . . . . Repair Stations 5 | . . 1 1 2 1 Recycling Units 7 | . 2 1 2 2 . Scanalyzers 4 | . . 2 . 1 1 Garrison Access 1 | . . . 1 . . Total Hacks 161 | . 24 47 46 35 9 Successful 104 | . 13 32 32 24 3 Failed 57 | . 11 15 14 11 6 Catastrophic 5 | . 1 1 2 1 . Database Lockouts . | . . . . . . Manual 69 | . 18 20 15 15 1 Terminals 92 | . 18 29 25 17 3 Fabricators . | . . . . . . Repair Stations 30 | . . 5 11 10 4 Recycling Units 21 | . 6 3 7 5 . Scanalyzers 15 | . . 10 . 3 2 Garrison Access 3 | . . . 3 . . Terminal Hacks 33 | . 6 10 10 6 1 Record 3 | . . 1 1 1 . Robot Analysis 10 | . 3 2 1 4 . Prototype ID Bank 2 | . . 1 1 . . Open Door 3 | . . . 3 . . Terminal Index 1 | . . . 1 . . Alert Level 4 | . 1 2 1 . . Unreport Threat 1 | . 1 . . . . Locate Traps 7 | . . 4 2 . 1 Dispatch Records 1 | . . . . 1 . Recall Reinforcements 1 | . 1 . . . . Fabricator Hacks . | . . . . . . Repair Station Hacks 24 | . . 4 10 9 1 Scan Component 13 | . . 2 5 5 1 Repair 11 | . . 2 5 4 . Recycling Unit Hacks 10 | . 2 2 4 2 . Report Inventory 7 | . 2 1 2 2 . Retrieve Components 3 | . . 1 2 . . Scanalyzer 13 | . . 10 . 2 1 Insert Component 7 | . . 5 . 1 1 Analyze 6 | . . 5 . 1 . Garrison Access Hacks 1 | . . . 1 . . Seal Access 1 | . . . 1 . . Unauthorized Hacks 23 | . 5 6 7 5 . Terminals 16 | . 3 5 5 3 . Assimilate 3 | . 1 1 . 1 . Botnet 9 | . 1 2 4 2 . Operators 4 | . 1 2 1 . . Fabricators . | . . . . . . Repair Stations . | . . . . . . Recycling Units 7 | . 2 1 2 2 . Reject 7 | . 2 1 2 2 . Scanalyzers . | . . . . . . Garrison Access . | . . . . . . Data Cores Recovered . | . . . . . . Used . | . . . . . . Hacking Detections 47 | . 9 11 12 11 4 Full Trace Events 1 | . . . 1 . . Feedback Events . | . . . . . . Feedback Blocked . | . . . . . . Robot Schematics Acquired . | . . . . . . Robots Built . | . . . . . . Authchips . | . . . . . . Time . | . . . . . . Total Robot Build Rating . | . . . . . . Part Schematics Acquired 5 | . . 4 . 1 . Parts Built . | . . . . . . Authchips . | . . . . . . Time . | . . . . . . Total Part Build Rating . | . . . . . . Parts Repaired 11 | . . 2 5 4 . Time 371 | . . 58 173 140 . Parts Recycled . | . . . . . . Recycled Matter . | . . . . . . Retrieved Matter . | . . . . . . Retrieved Components 21 | . . 9 12 . . Parts Scanalyzed 6 | . . 5 . 1 . Part Schematics Acquired 5 | . . 4 . 1 . Parts Damaged . | . . . . . . Bothacking | -11 -10 -9 -9 -8 -7 ------------ Run | Yrd Mat Mat Sto Mat Fac Used RIF Installer . | . . . . . . Robots Hacked . | . . . . . . Non-combat . | . . . . . . Combat . | . . . . . . Robot Hacks Applied . | . . . . . . Relay Couplers Released . | . . . . . . Fabnet Peak Effective % . | . . . . . . Robots Rewired . | . . . . . . Allies Hacked . | . . . . . . Hacks Repelled . | . . . . . . Allies | -11 -10 -9 -9 -8 -7 -------- Run | Yrd Mat Mat Sto Mat Fac Total Allies 2 | . 1 . . 1 . Largest Group 1 | . 1 1 . 1 1 Highest-Rated Group 26 | . 10 10 . 26 26 Highest-Rated Ally 26 | . 10 10 . 26 26 Total Orders 2 | . 2 . . . . STAY 1 | . 1 . . . . FOLLOW 1 | . 1 . . . . Ally Attacks . | . . . . . . Total Damage . | . . . . . . Kills . | . . . . . . Allies Corrupted . | . . . . . . Allies Melted . | . . . . . . Intel | -11 -10 -9 -9 -8 -7 ------- Run | Yrd Mat Mat Sto Mat Fac Active Infowar (turns) 182 | 32 150 . . . . Seismic 182 | 32 150 . . . . Robot Analysis Total 10 | . 3 2 1 4 . Derelict Logs Recovered . | . . . . . . Drone Launches . | . . . . . . Drone Recoveries . | . . . . . . Exploration | -11 -10 -9 -9 -8 -7 ------------- Run | Yrd Mat Mat Sto Mat Fac Turns Passed 9650 | 124 1378 2810 2146 2352 840 Spaces Moved 5028 | 82 1061 1454 949 1033 449 Core 53 | 11 . . . . 42 Treads 3725 | . . 1336 949 1033 407 Legs . | . . . . . . Wheels 1250 | 71 1061 118 . . . Hover . | . . . . . . Flight . | . . . . . . Fastest Speed 50 | 50 80 90 160 160 50 Average Speed 143 | 82 94 155 160 162 153 Slowest Speed 320 | 100 110 240 240 320 245 Overloaded Moves . | . . . . . . Propulsion Burnouts . | . . . . . . Robots Hopped . | . . . . . . Potential Cave-ins . | . . . . . . Cave-ins Triggered . | . . . . . . Exploration Rate (%) 64 | 4 99 97 94 82 10 Regions Visited 5 Branch Regions 1 Pre-discovered Areas . | . . . . . . Known Exits Taken . | . . . . . . Unknown Exits Taken 5 | 1 1 1 1 1 . Scrap Searched . | . . . . . . Spaces Dug . | . . . . . . Terrain Destroyed 133 | . . . . 54 79 Melee . | . . . . . . Projectile . | . . . . . . AOE 133 | . . . . 54 79 Terrain Rammed . | . . . . . . Walls Destroyed . | . . . . . . Machines Disabled . | . . . . . . Actions | -11 -10 -9 -9 -8 -7 --------- Run | Yrd Mat Mat Sto Mat Fac Total 6492 | 118 1279 1781 1347 1439 528 Wait 647 | 14 86 107 232 199 9 Move 5023 | 81 1060 1453 948 1032 449 Hop . | . . . . . . Pick Up 75 | 7 17 24 5 18 4 Fast Attach 42 | 7 1 11 4 13 6 Attach 31 | . 4 3 6 8 10 Detach 7 | . . 1 . 3 3 Swap 62 | 1 11 18 19 10 3 Drop 103 | . 17 44 16 19 7 Fire 500 | 8 82 120 116 137 37 Melee . | . . . . . . Ram 1 | . 1 . . . . Kick . | . . . . . . Crush . | . . . . . . Escape Stasis . | . . . . . . Rewire 1 | . . . 1 . . Trap . | . . . . . . Miscellaneous . | . . . . . . Route ------- -11/Scrapyard -10/Materials (discovered 6 exits: *Mat x3 / [*Min x2] / [*Sub]) -9/Materials (discovered 7 exits: *Mat x3 / [*Min x2] / *Sto x2) -9/Storage (discovered 2 exits: *Mat / [*Rec]) -8/Materials (discovered 2 exits: *Fac x2) -7/Factory History --------- Turn | Location | Event 18 | -11/Scrapyard | Discovered new exit (range 15) 125 | -11/Scrapyard | Entered Materials 304 | -10/Materials | Build established: Mutant 320 | -10/Materials | Discovered new exit (range 9) 488 | -10/Materials | Discovered new exit (range 12) 622 | -10/Materials | Discovered new exit (range 13) 784 | -10/Materials | Discovered new exit (range 7) 1189 | -10/Materials | Discovered new exit (range 12) 1225 | -10/Materials | Derelicts attacked the area 1469 | -10/Materials | Discovered new exit (range 15) 1503 | -10/Materials | Entered another Materials area 1503 | -9/Materials | Accompanied by 1 ally 1503 | -9/Materials | Evolved 2 slots: Propulsion x1, Utility x1 1506 | -9/Materials | Discovered new exit (range 16) 1808 | -9/Materials | Build established: Scavenger-Mutant 1840 | -9/Materials | Discovered new exit (range 12) 2235 | -9/Materials | Discovered new exit (range 13) 2530 | -9/Materials | Destroyed 8 combat bots 2867 | -9/Materials | Discovered new exit (range 14) 2979 | -9/Materials | Discovered new exit (range 6) 3250 | -9/Materials | Discovered new exit (range 14) 3390 | -9/Materials | Repaired Med. Armor Plating 3418 | -9/Materials | Repaired Lgt. Armor Plating 4027 | -9/Materials | Discovered new exit (range 6) 4313 | -9/Materials | Entered Storage 4661 | -9/Storage | Core integrity fell below 50% 4879 | -9/Storage | Garrison activated, responded to threat 5557 | -9/Storage | Repaired Med. Armor Plating 5609 | -9/Storage | Repaired Imp. Medium Laser 5642 | -9/Storage | Repaired Hrd. Light Armor Plating 5675 | -9/Storage | Repaired Beam Rifle 5702 | -9/Storage | Repaired Lgt. Treads 5895 | -9/Storage | Discovered new exit (range 15) 6304 | -9/Storage | Used back door to open Recycling access 6304 | -9/Storage | Discovered new exit (range 5) 6313 | -9/Storage | First assault squad dispatched 6385 | -9/Storage | Core integrity fell below 20% 6459 | -9/Storage | Entered Materials 6459 | -8/Materials | Evolved 2 slots: Utility x2 6898 | -8/Materials | Repaired Arm. Treads 6937 | -8/Materials | Repaired Imp. Heat Sink 6970 | -8/Materials | Repaired Rnf. Ion Engine 7865 | -8/Materials | Repaired Med. Armor Plating 7950 | -8/Materials | Discovered new exit (range 15) 8371 | -8/Materials | Discovered new exit (range 6) 8459 | -8/Materials | First assault squad dispatched 8749 | -8/Materials | Garrison activated, responded to threat 8811 | -8/Materials | Entered Factory 8811 | -7/Factory | Accompanied by 1 ally 8811 | -7/Factory | Evolved 2 slots: Utility x2 9568 | -7/Factory | Destroyed 7 combat bots 9600 | -7/Factory | Cargo convoy interrupted 9623 | -7/Factory | Core integrity fell below 50% 9626 | -7/Factory | System corruption reached 10% 9631 | -7/Factory | Core integrity fell below 20% 9651 | -7/Factory | Destroyed by P-60 Hacker with Shock Rifle Last Messages --------------- 09626_ Dropped Faulty Hvy. Ion Engine. 09627_ U-05 Engineer lays Concrete. 09627_ K-01 Serf collects debris. 09628_ U-05 Engineer lays Concrete. 09628_ Identified Cld. Particle Cannon. 09628_ Chain reaction triggered in Lgt. Ion Engine. 09628_ U-05 Engineer destroyed. 09628_ Penetrated by Slug. 09628_ Slug penetrates U-05 Engineer. 09628_ U-05 Engineer destroyed. 09628_ Nuclear Core destroyed. 09629_ Dropped Lrg. Storage Unit. 09629_ Dropped Cld. Particle Cannon. 09631_ Penetrated by Slug. 09633_ Acquired 4 matter. 09633_ P-60 Hacker resets I-36 Angel, system corruption cleaned. 09634_ System corrupted: Matter fused (-7). 09635_ Acquired 27 matter. Map ----- +----------------------------------------------------+ | ?????????????????????????????????????????????????? | | ?????????????????????????????????????????????????? | | ?????????????????????????????????????????????????? | | ?????????????????????????????????????????????????? | | ?????????????????????????????????????????????????? | | ?????????????????????????????????????????????????? | | ?????????????????????????????????????????????????? | | ????????????????????????????????????????????????? | | ????????????????????????????????????????????????? | | ????????????????????????????????????????????????? | | ????????????????????????????????????????????????? | | #???????????????????????????????????????????????? | | #????????????????????????????? ????????????????? | | #???????????????????????????? #???????????????? | | #??????????????????????????? #???????????????? | | = ??????????????????????????? #???????????????? | | %#??????????????????????????? +???????????????? | | | ?????????????????????????? #???????????????? | | ! #???????????????????????? k #???????????????? | | % ###??????????????######## #???????????????? | | %! ######???????????# #???????????????? | | !=[[ #??? ???????# #???????????????? | | %=%[ #??"" "?????# ?????????????????? | | != [ #?""" ""????+ ???????????????????? | | ] # """ """???# ?????????????????????? | | | ]# ????# @#??????????????????????? | | [| """ ""????# #??????????????????????? | | *|] # """ ""????#tk #??????????????????????? | | !]] ]! # """ """ # #??????????????????????? | | ]]] * # ! # #??????????????????????? | | ]]] # ########### #??????????????????????? | | ! # # # #??????????????????????? | | |% # #"""" # #??????????????????????? | | # # """" # #??????????????????????? | | ### ## # #"""" # #??????????????????????? | | #?# *# ## """" # #??????????????????????? | | #?# # # """" # ############???????????? | | #?## #!# #"""" + # ???????????? | | #???## ####"""" # # ????????????? | | #????#=#??# ! # # ?????????????? | | ####### ############# # ????????????? | | # # """ """????????????? | | """# ^ # """ """ ???????????? | | """# === + """ """ #?????????? | | " R"# ^ =^= ""# #?????????? | | " """# == ""# """ """ #?????????? | | " "" # ######^ ""# """ """ ???????????? | | # #????# T# """ """ #?????????? | | ####### #????# """ ""# +?????????? | | ??????# #????# """ ""#############??????????? | +----------------------------------------------------+ Best States ------------- Heat Dissipation 55 Energy Generation 14 Energy Capacity 265 Matter Stores 300 Matter Capacity 300 Sight Range 16 Terrain Scan Density 10 Armor Coverage 375 Evasion (%) 50 Targeting Accuracy 20 Recoil Reduction 3 Item Schematics ----------------- Lgt. Armor Plating | -9/Materials | Scanalyzed Hrd. Light Armor Plating | -9/Materials | Scanalyzed Lgt. Treads | -9/Materials | Scanalyzed Imp. Medium Laser | -9/Materials | Scanalyzed Arm. Treads | -8/Materials | Scanalyzed Robot Schematics ------------------ None Fabricated ------------ Nothing Repaired ---------- Med. Armor Plating | 64% | -9/Materials Lgt. Armor Plating | 63% | -9/Materials Med. Armor Plating | 7% | -9/Storage Imp. Medium Laser | 10% | -9/Storage Hrd. Light Armor Plating | 47% | -9/Storage Beam Rifle | 73% | -9/Storage Lgt. Treads | 71% | -9/Storage Arm. Treads | 66% | -8/Materials Imp. Heat Sink | 47% | -8/Materials Rnf. Ion Engine | 67% | -8/Materials Med. Armor Plating | 2% | -8/Materials Alien Tech Used ----------------- None Achievements -------------- None Challenges ------------ None Game ------ Seed BiocellHeatProtomatter Manual? 0 Play Time 01:09:45 Cumulative 238.0 hours Start 2025.06.28 @ 02:37:00 End 2025.06.28 @ 04:08:09 Sessions 1 Manual Loads 0 Difficulty Rogue Special Mode None Game No. 228 Rogue 228 Adventurer 0 Explorer 0 Win Type - Total 1 Types 1/0/0/0/0/0/0/0/0/0 Lore% 61 Gallery% 60 Achievement% 47 Wizard Run 0 Options --------- Layout 2 ASCII 1 Keyboard 1 Movement Numpad Keybinds 0 Fullscreen 2 Font 32/TamsynBold Map View 50x44 Zoom Use 0% Tactical HUD 1 Map Filters NONE Filters NONE Steam 1 RUN: 5b0bf974-01df-4312-af3d-76c92e37c640